[Event "*** SCC Grand Prix: Titled Tuesday Blitz"]
[Site "Chess.com"]
[Date "2020.10.06"]
[Round "2"]
[White "DeGrootteZ"]
[Black "ClydeHillKid"]
[Result "1/2-1/2"]
[WhiteElo "2645"]
[BlackElo "2348"]
[TimeControl "180+1"]
[EndTime "10:19:03 PDT"]
[Termination "Game drawn by stalemate"]

1. d4 {[%clk 0:03:00.9]} 1... d5 {[%clk 0:02:59.5]} 2. c4 {[%clk 0:03:00.8]}
2... e6 {[%clk 0:02:59.7]} 3. Nf3 {[%clk 0:03:01.2]} 3... Nf6 {[%clk 0:02:59.3]}
4. g3 {[%clk 0:03:01.7]} 4... Nbd7 {[%clk 0:02:58.9]} 5. Bg2 {[%clk 0:03:02.3]}
5... Be7 {[%clk 0:02:58.9]} 6. O-O {[%clk 0:03:02.9]} 6... O-O {[%clk
0:02:58.8]} 7. Qc2 {[%clk 0:03:03.5]} 7... c5 {[%clk 0:02:58.3]} 8. cxd5 {[%clk
0:03:02.4]} 8... Nxd5 {[%clk 0:02:58.1]} 9. e4 {[%clk 0:02:59.5]} 9... Nb4
{[%clk 0:02:57]} 10. Qe2 {[%clk 0:02:59.9]} 10... cxd4 {[%clk 0:02:55.8]} 11. a3
{[%clk 0:02:58.2]} 11... d3 {[%clk 0:02:55.6]} 12. Qd1 {[%clk 0:02:51.3]} 12...
Nc2 {[%clk 0:02:54.4]} 13. Ra2 {[%clk 0:02:51.1]} 13... Nc5 {[%clk 0:02:47.8]}
14. Ne5 {[%clk 0:02:42.8]} 14... Bf6 {[%clk 0:02:38.8]} 15. Ng4 {[%clk
0:02:36.7]} 15... Be7 {[%clk 0:02:02.1]} 16. b4 {[%clk 0:02:35]} 16... Na4
{[%clk 0:01:58.2]} 17. Ne5 {[%clk 0:02:31.3]} 17... Nd4 {[%clk 0:01:37]} 18.
Qxa4 {[%clk 0:02:24.6]} 18... Ne2+ {[%clk 0:01:26.7]} 19. Kh1 {[%clk 0:02:23]}
19... Bf6 {[%clk 0:01:10.4]} 20. Ng4 {[%clk 0:02:13.5]} 20... e5 {[%clk
0:00:51.3]} 21. Nxf6+ {[%clk 0:02:10]} 21... gxf6 {[%clk 0:00:51.3]} 22. Bh6
{[%clk 0:02:06.1]} 22... Re8 {[%clk 0:00:34.8]} 23. Rd2 {[%clk 0:01:55.3]} 23...
Be6 {[%clk 0:00:25.6]} 24. Qb5 {[%clk 0:01:13.9]} 24... Rc8 {[%clk 0:00:12.4]}
25. Rxd3 {[%clk 0:01:03.9]} 25... Bc4 {[%clk 0:00:09.5]} 26. Rxd8 {[%clk
0:01:00.4]} 26... Bxb5 {[%clk 0:00:08.4]} 27. Rxe8+ {[%clk 0:01:00.6]} 27...
Rxe8 {[%clk 0:00:08.1]} 28. Rd1 {[%clk 0:01:01]} 28... Rc8 {[%clk 0:00:07.5]}
29. Bh3 {[%clk 0:00:57.7]} 29... Re8 {[%clk 0:00:05.3]} 30. Bd7 {[%clk
0:00:56.1]} 30... Rd8 {[%clk 0:00:04.4]} 31. Rd5 {[%clk 0:00:39.4]} 31... Bxd7
{[%clk 0:00:03.1]} 32. Kg2 {[%clk 0:00:35.7]} 32... Nd4 {[%clk 0:00:02.4]} 33.
Nd2 {[%clk 0:00:31.8]} 33... Ne6 {[%clk 0:00:03]} 34. Nb3 {[%clk 0:00:26]} 34...
Bc6 {[%clk 0:00:03.5]} 35. Rxd8+ {[%clk 0:00:23.8]} 35... Nxd8 {[%clk
0:00:04.4]} 36. f3 {[%clk 0:00:24]} 36... Ne6 {[%clk 0:00:03.6]} 37. Kf2 {[%clk
0:00:21.6]} 37... b6 {[%clk 0:00:02.4]} 38. Ke3 {[%clk 0:00:19.4]} 38... Ba4
{[%clk 0:00:02.7]} 39. Nd2 {[%clk 0:00:18.4]} 39... Nc7 {[%clk 0:00:03.2]} 40.
Nc4 {[%clk 0:00:16.7]} 40... Nb5 {[%clk 0:00:03.5]} 41. f4 {[%clk 0:00:10.1]}
41... Bb3 {[%clk 0:00:03.6]} 42. Nd2 {[%clk 0:00:10.1]} 42... Be6 {[%clk
0:00:03.2]} 43. f5 {[%clk 0:00:10]} 43... Bd7 {[%clk 0:00:01.4]} 44. Nb1 {[%clk
0:00:09.2]} 44... Nc7 {[%clk 0:00:01.2]} 45. Nc3 {[%clk 0:00:08.8]} 45... a5
{[%clk 0:00:02.1]} 46. bxa5 {[%clk 0:00:08.7]} 46... bxa5 {[%clk 0:00:03]} 47.
g4 {[%clk 0:00:09]} 47... Nb5 {[%clk 0:00:02]} 48. Nd5 {[%clk 0:00:09.5]} 48...
Bc6 {[%clk 0:00:01.6]} 49. Nxf6+ {[%clk 0:00:09.8]} 49... Kh8 {[%clk 0:00:02.5]}
50. Bf8 {[%clk 0:00:07.4]} 50... Nc7 {[%clk 0:00:01.6]} 51. Bd6 {[%clk
0:00:06.6]} 51... Nb5 {[%clk 0:00:02.2]} 52. Bxe5 {[%clk 0:00:06.5]} 52... Nxa3
{[%clk 0:00:02.8]} 53. Ne8+ {[%clk 0:00:06]} 53... Kg8 {[%clk 0:00:03.4]} 54.
Nf6+ {[%clk 0:00:06.5]} 54... Kf8 {[%clk 0:00:03.8]} 55. Nxh7+ {[%clk 0:00:07]}
55... Ke8 {[%clk 0:00:04]} 56. f6 {[%clk 0:00:07.9]} 56... Nc4+ {[%clk
0:00:03.5]} 57. Kf4 {[%clk 0:00:08.8]} 57... Nxe5 {[%clk 0:00:04.2]} 58. Kxe5
{[%clk 0:00:09.5]} 58... a4 {[%clk 0:00:05.1]} 59. g5 {[%clk 0:00:09.6]} 59...
a3 {[%clk 0:00:05]} 60. g6 {[%clk 0:00:10.5]} 60... a2 {[%clk 0:00:05.5]} 61.
gxf7+ {[%clk 0:00:10.9]} 61... Kxf7 {[%clk 0:00:05.2]} 62. Ng5+ {[%clk
0:00:10.7]} 62... Ke8 {[%clk 0:00:05.3]} 63. f7+ {[%clk 0:00:09.7]} 63... Ke7
{[%clk 0:00:04.4]} 64. Nh7 {[%clk 0:00:06.8]} 64... a1=Q+ {[%clk 0:00:04.3]} 65.
Kf4 {[%clk 0:00:07.6]} 65... Qf1+ {[%clk 0:00:01.6]} 66. Kg5 {[%clk 0:00:07.6]}
66... Qxf7 {[%clk 0:00:01.9]} 67. h4 {[%clk 0:00:08.5]} 67... Bxe4 {[%clk
0:00:01.6]} 68. Nf6 {[%clk 0:00:09.4]} 68... Qg6+ {[%clk 0:00:02.1]} 69. Kf4
{[%clk 0:00:09.4]} 69... Qxf6+ {[%clk 0:00:03]} 70. Kxe4 {[%clk 0:00:10.1]}
70... Qf5+ {[%clk 0:00:03.6]} 71. Kxf5 {[%clk 0:00:10.3]} 71... Kf7 {[%clk
0:00:04.5]} 72. Kg5 {[%clk 0:00:10.3]} 72... Kg7 {[%clk 0:00:05.4]} 73. Kh5
{[%clk 0:00:11.2]} 73... Kh8 {[%clk 0:00:06.3]} 74. Kg5 {[%clk 0:00:11.9]} 74...
Kg8 {[%clk 0:00:07.2]} 75. Kg6 {[%clk 0:00:12.8]} 75... Kh8 {[%clk 0:00:08.1]}
76. h5 {[%clk 0:00:13.4]} 76... Kg8 {[%clk 0:00:09]} 77. h6 {[%clk 0:00:14.3]}
77... Kh8 {[%clk 0:00:09.9]} 78. h7 {[%clk 0:00:15.2]} 1/2-1/2

[Event "*** SCC Grand Prix: Titled Tuesday Blitz"]
[Site "Chess.com"]
[Date "2020.10.06"]
[Round "2"]
[White "ailime26"]
[Black "Cocaino74"]
[Result "0-1"]
[WhiteElo "1842"]
[BlackElo "2369"]
[TimeControl "180+1"]
[EndTime "10:19:07 PDT"]
[Termination "Cocaino74 won by checkmate"]

1. e4 {[%clk 0:03:00.9]} 1... c5 {[%clk 0:02:58.6]} 2. Nf3 {[%clk 0:02:45.7]}
2... Nc6 {[%clk 0:02:58.6]} 3. d4 {[%clk 0:02:31.9]} 3... cxd4 {[%clk
0:02:59.5]} 4. Nxd4 {[%clk 0:02:32.2]} 4... g6 {[%clk 0:02:59.3]} 5. c4 {[%clk
0:02:21]} 5... Nf6 {[%clk 0:02:59.2]} 6. Nc3 {[%clk 0:02:19.7]} 6... d6 {[%clk
0:02:59.6]} 7. Be3 {[%clk 0:02:12.2]} 7... Ng4 {[%clk 0:02:58.5]} 8. Bc1 {[%clk
0:02:07.8]} 8... Qb6 {[%clk 0:02:46.8]} 9. Nd5 {[%clk 0:01:26.4]} 9... Qa5+
{[%clk 0:02:24.7]} 10. Bd2 {[%clk 0:01:19.1]} 10... Qd8 {[%clk 0:02:23.1]} 11.
Bc3 {[%clk 0:01:15.5]} 11... Nxd4 {[%clk 0:02:17.3]} 12. Bxd4 {[%clk 0:01:11.8]}
12... e5 {[%clk 0:02:17.5]} 13. Bc3 {[%clk 0:01:07.8]} 13... Bg7 {[%clk
0:02:16.8]} 14. Be2 {[%clk 0:01:07]} 14... Nf6 {[%clk 0:02:15]} 15. Ne3 {[%clk
0:01:00.5]} 15... Nxe4 {[%clk 0:02:11.8]} 16. Bb4 {[%clk 0:00:55.8]} 16... a5
{[%clk 0:02:06.7]} 17. Ba3 {[%clk 0:00:52]} 17... Be6 {[%clk 0:00:52.5]} 18. O-O
{[%clk 0:00:41.9]} 18... f5 {[%clk 0:00:49.9]} 19. f3 {[%clk 0:00:31.4]} 19...
Nf6 {[%clk 0:00:44.8]} 20. Qxd6 {[%clk 0:00:18.6]} 20... Qxd6 {[%clk 0:00:37.4]}
21. Bxd6 {[%clk 0:00:19.5]} 21... Nh5 {[%clk 0:00:34.3]} 22. c5 {[%clk
0:00:18.2]} 22... Kf7 {[%clk 0:00:21.6]} 23. Bc4 {[%clk 0:00:16.3]} 23... Bh6
{[%clk 0:00:20.6]} 24. Bxe6+ {[%clk 0:00:13.8]} 24... Kxe6 {[%clk 0:00:21.5]}
25. Nc4 {[%clk 0:00:13.2]} 25... b5 {[%clk 0:00:15.7]} 26. Nxe5 {[%clk
0:00:11.6]} 26... Rhd8 {[%clk 0:00:08.1]} 27. Rfe1 {[%clk 0:00:11.4]} 27... Kf6
{[%clk 0:00:05.8]} 28. Nc6 {[%clk 0:00:10.9]} 28... Rd7 {[%clk 0:00:05.5]} 29.
Ne5 {[%clk 0:00:10.5]} 29... Rdd8 {[%clk 0:00:04.9]} 30. Be7+ {[%clk 0:00:10.2]}
30... Kxe7 {[%clk 0:00:04.7]} 31. Nc6+ {[%clk 0:00:10.3]} 31... Kf7 {[%clk
0:00:04.8]} 32. Nxd8+ {[%clk 0:00:10.1]} 32... Rxd8 {[%clk 0:00:05.7]} 33. Rad1
{[%clk 0:00:09.4]} 33... Rc8 {[%clk 0:00:04.6]} 34. Rd7+ {[%clk 0:00:08.3]}
34... Kg8 {[%clk 0:00:03.5]} 35. Rd5 {[%clk 0:00:07.4]} 35... Nf6 {[%clk
0:00:03.6]} 36. Rde5 {[%clk 0:00:06.9]} 36... Nd7 {[%clk 0:00:02.4]} 37. Re8+
{[%clk 0:00:06.7]} 37... Rxe8 {[%clk 0:00:02.1]} 38. Rxe8+ {[%clk 0:00:07.6]}
38... Kf7 {[%clk 0:00:03]} 39. Rc8 {[%clk 0:00:06.8]} 39... Nxc5 {[%clk
0:00:03.1]} 40. Rc7+ {[%clk 0:00:05.6]} 40... Ke6 {[%clk 0:00:03.1]} 41. Rxh7
{[%clk 0:00:05.8]} 41... Be3+ {[%clk 0:00:03.4]} 42. Kf1 {[%clk 0:00:06.1]}
42... Na4 {[%clk 0:00:02.3]} 43. b3 {[%clk 0:00:06]} 43... Nc3 {[%clk
0:00:01.6]} 44. Rh8 {[%clk 0:00:04.9]} 44... Nxa2 {[%clk 0:00:01.4]} 45. Re8+
{[%clk 0:00:04.2]} 45... Kf7 {[%clk 0:00:01.3]} 46. Rxe3 {[%clk 0:00:05]} 46...
Nb4 {[%clk 0:00:01.9]} 47. Ke2 {[%clk 0:00:04.8]} 47... Nd5 {[%clk 0:00:02.4]}
48. Rd3 {[%clk 0:00:05]} 48... Nf4+ {[%clk 0:00:02.7]} 49. Ke3 {[%clk
0:00:05.2]} 49... Nxd3 {[%clk 0:00:03.2]} 50. Kxd3 {[%clk 0:00:05.3]} 50... Ke6
{[%clk 0:00:03.9]} 51. Kd4 {[%clk 0:00:05.1]} 51... Kd6 {[%clk 0:00:04.3]} 52.
g4 {[%clk 0:00:04.6]} 52... fxg4 {[%clk 0:00:04.1]} 53. fxg4 {[%clk 0:00:05.3]}
53... g5 {[%clk 0:00:04.5]} 54. Ke4 {[%clk 0:00:03.4]} 54... a4 {[%clk
0:00:04.5]} 55. bxa4 {[%clk 0:00:03.1]} 55... bxa4 {[%clk 0:00:05.4]} 56. Kf5
{[%clk 0:00:04]} 56... a3 {[%clk 0:00:06.1]} 57. Kxg5 {[%clk 0:00:04.6]} 57...
a2 {[%clk 0:00:07]} 58. h4 {[%clk 0:00:04.6]} 58... a1=Q {[%clk 0:00:07.9]} 59.
Kh6 {[%clk 0:00:04.8]} 59... Qf6+ {[%clk 0:00:08]} 60. Kh5 {[%clk 0:00:05.1]}
60... Qh8+ {[%clk 0:00:08.2]} 61. Kg5 {[%clk 0:00:05.5]} 61... Ke5 {[%clk
0:00:08.7]} 62. h5 {[%clk 0:00:05.7]} 62... Qf6# {[%clk 0:00:08.3]} 0-1

[Event "*** SCC Grand Prix: Titled Tuesday Blitz"]
[Site "Chess.com"]
[Date "2020.10.06"]
[Round "2"]
[White "Duhless"]
[Black "johnathan113"]
[Result "1-0"]
[WhiteElo "2968"]
[BlackElo "2588"]
[TimeControl "180+1"]
[EndTime "10:19:19 PDT"]
[Termination "Duhless won on time"]

1. d4 {[%clk 0:03:00.9]} 1... Nf6 {[%clk 0:02:57.3]} 2. Nf3 {[%clk 0:03:00.6]}
2... g6 {[%clk 0:02:57.8]} 3. Bg5 {[%clk 0:02:59.2]} 3... Bg7 {[%clk 0:02:58]}
4. Nbd2 {[%clk 0:02:59.2]} 4... O-O {[%clk 0:02:58.3]} 5. e3 {[%clk 0:02:58.3]}
5... d6 {[%clk 0:02:58.8]} 6. Bc4 {[%clk 0:02:58]} 6... Nbd7 {[%clk 0:02:58.8]}
7. O-O {[%clk 0:02:57.5]} 7... h6 {[%clk 0:02:59.2]} 8. Bh4 {[%clk 0:02:57.2]}
8... e5 {[%clk 0:02:57.6]} 9. a4 {[%clk 0:02:48.2]} 9... g5 {[%clk 0:02:46.8]}
10. Bg3 {[%clk 0:02:47.9]} 10... e4 {[%clk 0:02:46.5]} 11. Ne1 {[%clk
0:02:47.9]} 11... d5 {[%clk 0:02:46.7]} 12. Bb3 {[%clk 0:02:47.7]} 12... c6
{[%clk 0:02:39.5]} 13. c4 {[%clk 0:02:46.6]} 13... Re8 {[%clk 0:02:34.8]} 14.
cxd5 {[%clk 0:02:44.2]} 14... cxd5 {[%clk 0:02:35.7]} 15. a5 {[%clk 0:02:35.4]}
15... Nb8 {[%clk 0:02:34]} 16. Nc2 {[%clk 0:02:26.8]} 16... Nc6 {[%clk
0:02:33.5]} 17. Ba4 {[%clk 0:02:25.7]} 17... Bg4 {[%clk 0:02:24.2]} 18. Qb1
{[%clk 0:02:19.4]} 18... Rc8 {[%clk 0:02:17.1]} 19. a6 {[%clk 0:02:12.7]} 19...
bxa6 {[%clk 0:02:15.9]} 20. Nb3 {[%clk 0:02:11.9]} 20... h5 {[%clk 0:02:08.9]}
21. h3 {[%clk 0:02:10]} 21... Be2 {[%clk 0:02:01.9]} 22. Re1 {[%clk 0:02:09.7]}
22... Bd3 {[%clk 0:02:02.2]} 23. Nc5 {[%clk 0:02:09.6]} 23... h4 {[%clk
0:01:58.6]} 24. Bh2 {[%clk 0:02:07.8]} 24... g4 {[%clk 0:01:59.2]} 25. Kh1
{[%clk 0:01:57.3]} 25... g3 {[%clk 0:01:48.3]} 26. fxg3 {[%clk 0:01:56.7]} 26...
hxg3 {[%clk 0:01:49.2]} 27. Bxg3 {[%clk 0:01:56.4]} 27... Nh5 {[%clk 0:01:49.4]}
28. Bh2 {[%clk 0:01:54.8]} 28... Qg5 {[%clk 0:01:44.4]} 29. Qd1 {[%clk
0:01:50.6]} 29... Ng3+ {[%clk 0:01:39.4]} 30. Bxg3 {[%clk 0:01:45.4]} 30... Qxg3
{[%clk 0:01:40.3]} 31. Nxd3 {[%clk 0:01:41.5]} 31... exd3 {[%clk 0:01:40.5]} 32.
Qxd3 {[%clk 0:01:42.1]} 32... Re6 {[%clk 0:01:32.7]} 33. Qf5 {[%clk 0:01:23.6]}
33... Rb8 {[%clk 0:01:25.2]} 34. Rf1 {[%clk 0:01:18]} 34... Rg6 {[%clk 0:01:08]}
35. Qxf7+ {[%clk 0:01:12.5]} 35... Kh7 {[%clk 0:01:08.3]} 36. Qxd5 {[%clk
0:01:13.4]} 36... Rxb2 {[%clk 0:01:04.1]} 37. Qe4 {[%clk 0:01:09]} 37... Nb4
{[%clk 0:00:39.3]} 38. Ne1 {[%clk 0:00:56.2]} 38... Kh8 {[%clk 0:00:15]} 39. Rc1
{[%clk 0:00:39]} 39... Nd3 {[%clk 0:00:13.2]} 40. Rc8+ {[%clk 0:00:29.4]} 40...
Kh7 {[%clk 0:00:13.6]} 41. Be8 {[%clk 0:00:17.4]} 41... Nf2+ {[%clk 0:00:10.8]}
42. Rxf2 {[%clk 0:00:17.6]} 42... Rxf2 {[%clk 0:00:11.7]} 43. Qxg6+ {[%clk
0:00:16.2]} 43... Qxg6 {[%clk 0:00:12.1]} 44. Bxg6+ {[%clk 0:00:16.4]} 44...
Kxg6 {[%clk 0:00:13]} 45. Nd3 {[%clk 0:00:14.5]} 45... Rf1+ {[%clk 0:00:09.6]}
46. Kh2 {[%clk 0:00:14.7]} 46... Bh6 {[%clk 0:00:10.5]} 47. Rc6+ {[%clk
0:00:12.4]} 47... Kg7 {[%clk 0:00:10.7]} 48. Rxa6 {[%clk 0:00:10.4]} 48... Bxe3
{[%clk 0:00:10.3]} 49. Rxa7+ {[%clk 0:00:10.7]} 49... Kh6 {[%clk 0:00:10.6]} 50.
Ra6+ {[%clk 0:00:06.4]} 50... Kg5 {[%clk 0:00:11]} 51. Ra5+ {[%clk 0:00:05.9]}
51... Kh6 {[%clk 0:00:10]} 52. Rd5 {[%clk 0:00:03.9]} 52... Rd1 {[%clk
0:00:10.2]} 53. Ne5 {[%clk 0:00:03.7]} 53... Bxd4 {[%clk 0:00:09.5]} 54. Ng4+
{[%clk 0:00:03.7]} 54... Kg6 {[%clk 0:00:09.2]} 55. Rb5 {[%clk 0:00:03.5]} 55...
Bg1+ {[%clk 0:00:07.2]} 56. Kg3 {[%clk 0:00:03.7]} 56... Rd3+ {[%clk 0:00:08]}
57. Kh4 {[%clk 0:00:03.9]} 57... Rd4 {[%clk 0:00:08.7]} 58. Rg5+ {[%clk
0:00:03.7]} 58... Kh7 {[%clk 0:00:07.9]} 59. Rb5 {[%clk 0:00:03.8]} 59... Bf2+
{[%clk 0:00:07.2]} 60. Kh5 {[%clk 0:00:02.7]} 60... Bg3 {[%clk 0:00:07.6]} 61.
Rf5 {[%clk 0:00:02.4]} 61... Rd2 {[%clk 0:00:06.1]} 62. Nf6+ {[%clk 0:00:02.1]}
62... Kg7 {[%clk 0:00:04.5]} 63. Ne4 {[%clk 0:00:03]} 63... Rxg2 {[%clk
0:00:03]} 64. Rg5+ {[%clk 0:00:03.2]} 64... Kh7 {[%clk 0:00:03.5]} 65. Nf6+
{[%clk 0:00:02.5]} 1-0

[Event "*** SCC Grand Prix: Titled Tuesday Blitz"]
[Site "Chess.com"]
[Date "2020.10.06"]
[Round "2"]
[White "Evandro_Barbosa"]
[Black "Bigfish1995"]
[Result "0-1"]
[WhiteElo "2614"]
[BlackElo "3115"]
[TimeControl "180+1"]
[EndTime "10:19:23 PDT"]
[Termination "Bigfish1995 won on time"]

1. e4 {[%clk 0:03:00.9]} 1... c6 {[%clk 0:02:33.5]} 2. d4 {[%clk 0:02:57.7]}
2... d5 {[%clk 0:02:33.6]} 3. Nc3 {[%clk 0:02:55.6]} 3... dxe4 {[%clk
0:02:32.8]} 4. Nxe4 {[%clk 0:02:55.2]} 4... Bf5 {[%clk 0:02:33.3]} 5. Ng3 {[%clk
0:02:55]} 5... Bg6 {[%clk 0:02:33.4]} 6. h4 {[%clk 0:02:55.3]} 6... h6 {[%clk
0:02:33.2]} 7. Nf3 {[%clk 0:02:55]} 7... Nd7 {[%clk 0:02:32.6]} 8. h5 {[%clk
0:02:55]} 8... Bh7 {[%clk 0:02:32.7]} 9. Bd3 {[%clk 0:02:55.3]} 9... Bxd3 {[%clk
0:02:32.8]} 10. Qxd3 {[%clk 0:02:55.3]} 10... e6 {[%clk 0:02:33.3]} 11. Bd2
{[%clk 0:02:55.3]} 11... Qc7 {[%clk 0:02:33.3]} 12. O-O-O {[%clk 0:02:55.1]}
12... O-O-O {[%clk 0:02:33.8]} 13. Ne4 {[%clk 0:02:55.1]} 13... Ngf6 {[%clk
0:02:34.1]} 14. g3 {[%clk 0:02:54.7]} 14... Nc5 {[%clk 0:02:33.4]} 15. Nxc5
{[%clk 0:02:53.6]} 15... Bxc5 {[%clk 0:02:33.4]} 16. c4 {[%clk 0:02:53.8]} 16...
b5 {[%clk 0:02:07.4]} 17. Kb1 {[%clk 0:02:50.4]} 17... bxc4 {[%clk 0:01:49]} 18.
Qxc4 {[%clk 0:02:47.9]} 18... Bd6 {[%clk 0:01:47.3]} 19. Rc1 {[%clk 0:02:46.5]}
19... Kd7 {[%clk 0:01:40.4]} 20. Bf4 {[%clk 0:02:04.6]} 20... Bxf4 {[%clk
0:00:52.3]} 21. gxf4 {[%clk 0:02:05.5]} 21... Ke7 {[%clk 0:00:48.7]} 22. Ne5
{[%clk 0:01:54.2]} 22... Kf8 {[%clk 0:00:46.4]} 23. Nxc6 {[%clk 0:01:40]} 23...
Rd6 {[%clk 0:00:46.3]} 24. Qc5 {[%clk 0:01:01.5]} 24... Kg8 {[%clk 0:00:40.4]}
25. Nxa7 {[%clk 0:00:57.9]} 25... Qd7 {[%clk 0:00:37.5]} 26. Nc8 {[%clk
0:00:20.7]} 26... Rxd4 {[%clk 0:00:34.2]} 27. Ne7+ {[%clk 0:00:19.2]} 27... Kh7
{[%clk 0:00:34.4]} 28. Qc2+ {[%clk 0:00:18.8]} 28... Ne4 {[%clk 0:00:33.1]} 29.
Nc6 {[%clk 0:00:18.4]} 29... Rc8 {[%clk 0:00:17.2]} 30. f3 {[%clk 0:00:13.3]}
30... Rxc6 {[%clk 0:00:17.2]} 31. Qxc6 {[%clk 0:00:13.5]} 31... Nd2+ {[%clk
0:00:17.2]} 32. Ka1 {[%clk 0:00:12.2]} 32... Qa7 {[%clk 0:00:17.6]} 33. Qc2+
{[%clk 0:00:11.2]} 33... f5 {[%clk 0:00:16.9]} 34. b3 {[%clk 0:00:11.4]} 34...
Rd7 {[%clk 0:00:11.2]} 35. Rhd1 {[%clk 0:00:11]} 35... Qe3 {[%clk 0:00:10.9]}
36. Kb2 {[%clk 0:00:07.2]} 36... Qxf4 {[%clk 0:00:10.6]} 37. Qc3 {[%clk
0:00:07.2]} 37... Rd4 {[%clk 0:00:08.5]} 38. a4 {[%clk 0:00:04.8]} 38... e5
{[%clk 0:00:06.4]} 39. a5 {[%clk 0:00:05.2]} 39... Nxf3 {[%clk 0:00:03.3]} 40.
a6 {[%clk 0:00:03.5]} 40... Rxd1 {[%clk 0:00:02]} 41. Rxd1 {[%clk 0:00:04.4]}
41... e4 {[%clk 0:00:02.8]} 42. a7 {[%clk 0:00:04.2]} 42... Qh2+ {[%clk
0:00:03.7]} 43. Qc2 {[%clk 0:00:03.9]} 43... Qe5+ {[%clk 0:00:03.2]} 44. Qc3
{[%clk 0:00:04]} 44... Qh2+ {[%clk 0:00:03.4]} 45. Qc2 {[%clk 0:00:04]} 45...
Qe5+ {[%clk 0:00:03.5]} 46. Qc3 {[%clk 0:00:03.4]} 46... Qe8 {[%clk 0:00:04.1]}
47. Kb1 {[%clk 0:00:04]} 47... e3 {[%clk 0:00:04.3]} 48. Qc1 {[%clk 0:00:02.1]}
48... e2 {[%clk 0:00:04.6]} 49. Re1 {[%clk 0:00:02.1]} 49... Nxe1 {[%clk
0:00:04.6]} 50. Qxe1 {[%clk 0:00:03]} 50... Qe4+ {[%clk 0:00:05.1]} 51. Kb2
{[%clk 0:00:02.9]} 51... f4 {[%clk 0:00:05.5]} 52. a8=Q {[%clk 0:00:02.8]} 52...
Qxa8 {[%clk 0:00:05.5]} 53. Qxe2 {[%clk 0:00:03.7]} 53... Qf8 {[%clk 0:00:06.1]}
54. Qd3+ {[%clk 0:00:03.8]} 54... Kg8 {[%clk 0:00:06.5]} 55. Qf3 {[%clk
0:00:04.2]} 55... Qf5 {[%clk 0:00:06.4]} 56. Qa8+ {[%clk 0:00:03.7]} 56... Kf7
{[%clk 0:00:06.5]} 57. Qb7+ {[%clk 0:00:04.3]} 57... Kf6 {[%clk 0:00:07]} 58.
Qc6+ {[%clk 0:00:03.8]} 58... Kg5 {[%clk 0:00:07.4]} 59. Qg2+ {[%clk 0:00:03.8]}
59... Qg4 {[%clk 0:00:07.6]} 60. Qd5+ {[%clk 0:00:03.8]} 60... Kh4 {[%clk
0:00:08]} 61. Qh1+ {[%clk 0:00:03.9]} 61... Qh3 {[%clk 0:00:07.2]} 62. Qe4
{[%clk 0:00:03.4]} 62... Kg3 {[%clk 0:00:03.4]} 63. b4 {[%clk 0:00:03.5]} 63...
Qg2+ {[%clk 0:00:03.2]} 64. Qxg2+ {[%clk 0:00:02.8]} 64... Kxg2 {[%clk
0:00:04.1]} 65. b5 {[%clk 0:00:03.2]} 65... f3 {[%clk 0:00:05]} 66. b6 {[%clk
0:00:03.8]} 66... f2 {[%clk 0:00:05.9]} 67. b7 {[%clk 0:00:04.4]} 67... f1=Q
{[%clk 0:00:06.8]} 68. b8=Q {[%clk 0:00:05]} 68... Qe2+ {[%clk 0:00:07.3]} 69.
Kc3 {[%clk 0:00:05.5]} 69... Qxh5 {[%clk 0:00:07.5]} 70. Qb7+ {[%clk 0:00:02.6]}
70... Qf3+ {[%clk 0:00:07.7]} 0-1